bitfinex-derivatives/quotes_SOLF0:USTF0_20250624
["timestamp","ask_amount","ask_price","bid_price","bid_amount"]
[1750770507622,6.9098,144.64,144.61,6.9108]
[1750770509426,6.9098,144.64,144.62,6.9104]
[1750770509923,6.9092,144.65,144.63,6.9099]
[1750770510325,6.9096,144.64,144.62,4.38569611]
[1750770510524,35.16,144.66,144.62,11.29589611]
[1750770510720,35.16,144.66,144.57,42.0031]
[1750770510721,35.16,144.66,144.61,4.38569611]
[1750770510929,6.9096,144.64,144.61,4.38569611]
[1750770511423,6.9101,144.63,144.61,4.38569611]
[1750770513436,6.9101,144.63,144.59,4.38569611]
[1750770513629,6.9101,144.63,144.61,6.9109]
[1750770514221,35.16,144.66,144.59,4.38569611]
[1750770514222,6.9107,144.62,144.59,11.29729611]
[1750770514428,35.16,144.62,144.57,4.38569611]
[1750770514935,6.9117,144.6,144.57,4.38569611]
[1750770516332,6.9117,144.6,144.58,6.9123]
[1750770517134,6.9117,144.6,144.57,11.29839611]
[1750770517436,6.9117,144.6,144.57,4.38569611]
[1750770517631,35.16,144.62,144.53,4.38569611]
[1750770517632,5.31516574,144.61,144.53,4.38569611]
[1750770517931,9.70137376,144.6,144.53,4.38569611]
[1750770518137,6.9129,144.57,144.53,4.38569611]
[1750770518632,35.16,144.58,144.53,4.38569611]
[1750770518946,35.16,144.58,144.52,6.9152]
[1750770519144,6.9141,144.55,144.52,6.9152]
[1750770521137,6.9141,144.55,144.53,6.9148]
[1750770521839,6.9144,144.54,144.52,6.915]
[1750770522031,6.9144,144.54,144.51,6.61459611]
[1750770522340,6.9144,144.54,144.51,13.52999611]
[1750770522526,6.9144,144.54,144.51,6.61459611]
[1750770523332,6.9149,144.53,144.51,11.30129611]
[1750770523531,5.32177363,144.56,144.51,11.30129611]
[1750770523725,5.32301859,144.55,144.51,11.30129611]
[1750770523937,39.54569611,144.58,144.51,11.30129611]
[1750770524139,6.9146,144.54,144.51,11.30129611]
[1750770529042,5.311593,144.57,144.51,11.30129611]
[1750770529043,39.54569611,144.58,144.51,4.38569611]
[1750770529248,5.31145776,144.57,144.51,4.38569611]
[1750770529542,6.9134,144.56,144.53,6.9148]
[1750770529740,35.16,144.58,144.53,4.38569611]
[1750770530647,42.0729,144.58,144.55,6.9136]
[1750770531033,35.16,144.58,144.55,6.9136]
[1750770532145,6.9129,144.57,144.55,6.9136]
[1750770532848,35.16,144.58,144.55,4.38569611]
[1750770533734,35.16,144.58,144.57,6.9129]
[1750770533943,6.9117,144.6,144.57,11.29859611]
[1750770534146,35.14,144.61,144.57,4.38569611]
[1750770534846,42.0512,144.61,144.58,6.912]
[1750770535644,42.0512,144.61,144.59,6.9119]
[1750770536541,42.0512,144.61,144.58,6.9122]
[1750770538951,6.9115,144.6,144.58,6.9122]
[1750770539556,6.9115,144.6,144.57,11.29839611]
[1750770539758,6.912,144.59,144.57,11.29839611]
[1750770539955,35.14,144.61,144.57,4.38569611]
[1750770540647,7.85510549,144.6,144.53,6.9146]
[1750770540848,6.9142,144.55,144.53,4.38569611]
[1750770541861,6.9136,144.56,144.53,11.30049611]
[1750770542050,6.9136,144.56,144.53,4.38569611]
[1750770544544,6.9136,144.56,144.49,88.77111242]
[1750770544749,6.9136,144.56,144.53,4.38569611]
[1750770545151,6.9136,144.56,144.54,6.9143]
[1750770546558,6.9136,144.56,144.53,11.30029611]
[1750770546756,6.9142,144.55,144.53,4.38569611]
[1750770547556,6.9142,144.55,144.53,11.30049611]
[1750770548950,6.9136,144.56,144.53,11.30049611]
[1750770549755,6.9136,144.56,144.53,11.30019611]
[1750770550156,42.0531,144.57,144.53,4.38569611]
[1750770550358,42.0531,144.57,144.55,6.9138]
[1750770550556,42.0531,144.57,144.53,4.38569611]
[1750770551961,42.0531,144.57,144.54,6.9139]
[1750770556959,42.0531,144.57,144.55,6.9138]
[1750770559768,6.9134,144.56,144.54,6.9141]
[1750770562474,6.9139,144.55,144.53,11.30029611]
[1750770562670,6.9139,144.55,144.53,6.9146]
[1750770564575,6.9139,144.55,144.52,11.30069611]
[1750770565380,6.9136,144.56,144.53,6.9147]
[1750770566385,35.14,144.57,144.53,6.9147]
[1750770567077,6.9138,144.56,144.53,6.9147]
[1750770567683,6.9139,144.55,144.53,6.9147]
[1750770567884,6.9139,144.55,144.52,11.30069611]
[1750770569287,35.14,144.57,144.52,11.30069611]
[1750770569587,5.31454993,144.56,144.51,6.9155]
[1750770569784,5.31475176,144.55,144.51,6.9155]
[1750770569994,6.915,144.53,144.51,6.9155]
[1750770570598,8.1938516,144.56,144.52,6.9152]
[1750770570778,5.31486201,144.55,144.52,6.9152]
[1750770570976,6.9143,144.55,144.52,6.9152]
[1750770573380,6.9143,144.54,144.52,6.9152]
[1750770575887,8.17300532,144.56,144.5,4.38569611]
[1750770576076,10.92176891,144.55,144.5,4.38569611]
[1750770576282,2.54694932,144.56,144.5,4.38569611]
[1750770576481,12.20931868,144.55,144.52,6.9149]
[1750770576680,6.9141,144.55,144.52,6.9149]
[1750770576885,6.9141,144.55,144.47,2.2831]
[1750770577091,6.9141,144.55,144.51,4.38569611]
[1750770577388,6.9141,144.55,144.52,6.9151]
[1750770577994,8.16480055,144.56,144.51,11.30129611]
[1750770578187,5.2945904,144.55,144.51,11.30129611]
[1750770578388,8.16454283,144.56,144.51,11.30129611]
[1750770578593,6.9146,144.54,144.51,11.30129611]
[1750770579089,6.9149,144.53,144.51,11.30129611]
[1750770579586,5.29423466,144.55,144.51,11.30129611]
[1750770579790,6.9145,144.54,144.51,11.30129611]
[1750770581387,6.9145,144.54,144.52,6.9152]
[1750770581785,6.9145,144.54,144.51,4.38569611]
[1750770581985,6.9145,144.54,144.51,11.30109611]
[1750770583390,6.9145,144.54,144.52,6.9151]
[1750770583895,6.9145,144.54,144.51,4.38569611]
[1750770584394,6.9145,144.54,144.52,2.80539246]
[1750770585292,6.9145,144.54,144.52,9.72069246]
[1750770587895,6.9148,144.53,144.52,2.80539246]
[1750770588203,2.80539246,144.55,144.51,2.80539246]
[1750770588387,5.29362677,144.54,144.51,2.80539246]
[1750770588591,2.80539246,144.55,144.51,2.80539246]
[1750770588784,6.915,144.53,144.51,9.72109246]
[1750770588985,6.915,144.53,144.52,2.80539246]
[1750770589698,6.9146,144.54,144.52,9.72069246]
[1750770590000,6.9146,144.54,144.53,2.80539246]
[1750770590188,6.9146,144.54,144.52,6.9153]
[1750770590388,6.9146,144.54,144.52,2.80539246]
[1750770591300,6.9146,144.54,144.52,9.72059246]
[1750770599205,6.9141,144.55,144.52,9.72059246]
[1750770600107,6.9144,144.54,144.52,9.72059246]
[1750770602911,6.9144,144.54,144.52,2.80539246]
[1750770603111,4.65261105,144.56,144.52,2.80539246]
[1750770603409,2.2785,144.6,144.55,2.80539246]
[1750770603410,35.06,144.6,144.55,2.80539246]
[1750770603595,10.92248563,144.59,144.58,2.80539246]
[1750770603800,20.93053875,144.59,144.52,6.8924]
[1750770604001,18.12514629,144.58,144.55,2.80539246]
[1750770604207,37.258,144.6,144.57,2.80539246]
[1750770604411,5.29592049,144.59,144.58,2.80539246]
[1750770604908,5.29592049,144.59,144.53,4.6008]
[1750770605112,35.06,144.6,144.58,2.80539246]
[1750770605309,5.2958252,144.59,144.58,2.80539246]
[1750770606613,12.20610606,144.59,144.53,4.6008]
[1750770606911,10.6603813,144.58,144.54,2.80539246]
[1750770607112,5.30786026,144.57,144.54,2.80539246]
[1750770607314,6.9133,144.57,144.54,2.80539246]
[1750770607616,5.30839798,144.56,144.54,2.80539246]
[1750770607818,2.80539246,144.58,144.54,2.80539246]
[1750770608016,7.85685463,144.57,144.54,2.80539246]
[1750770608216,5.30913236,144.56,144.54,2.80539246]
[1750770608411,2.80539246,144.58,144.54,2.80539246]
[1750770608608,6.9135,144.56,144.54,2.80539246]
[1750770608915,5.3092019,144.55,144.54,2.80539246]
[1750770609318,6.9135,144.56,144.54,2.80539246]
[1750770609507,5.3095128,144.55,144.54,2.80539246]
[1750770610314,5.3095128,144.55,144.53,9.71989246]
[1750770610515,6.9135,144.56,144.53,9.71989246]
[1750770610714,5.30954757,144.55,144.53,9.71989246]
[1750770610915,6.9135,144.56,144.53,9.71989246]
[1750770611216,5.30946587,144.55,144.53,9.71989246]
[1750770611417,6.9135,144.56,144.53,9.71989246]
[1750770611718,5.30966665,144.55,144.53,9.71989246]
[1750770611908,6.9135,144.56,144.52,2.80539246]
[1750770611909,2.80539246,144.56,144.52,2.80539246]
[1750770612108,5.3066061,144.55,144.52,2.80539246]
[1750770612315,6.9147,144.54,144.52,2.80539246]
[1750770612517,6.9147,144.54,144.51,9.72099246]
[1750770613113,37.86539246,144.56,144.51,9.72099246]
[1750770613416,6.9145,144.54,144.51,9.72099246]
[1750770614118,2.80539246,144.54,144.49,87.02753871]
[1750770614419,2.80539246,144.54,144.5,2.80539246]
[1750770614910,6.9155,144.52,144.5,2.80539246]
[1750770616303,6.915,144.53,144.5,9.72149246]
[1750770616513,6.915,144.53,144.5,2.80539246]
[1750770616816,6.915,144.53,144.51,2.80539246]
[1750770617518,6.915,144.53,144.5,6.9161]
[1750770617818,6.915,144.53,144.51,2.80539246]
[1750770618217,6.915,144.53,144.51,6.9157]
[1750770618411,6.9145,144.54,144.51,6.9157]
[1750770618611,35.06,144.56,144.51,6.9157]
[1750770618814,13.43177116,144.55,144.51,6.9157]
[1750770619009,5.28976189,144.54,144.51,6.9157]
[1750770619314,35.06,144.56,144.51,6.9157]
[1750770619510,7.84018541,144.55,144.51,6.9157]
[1750770619714,6.9148,144.53,144.5,6.9159]
[1750770621226,6.916,144.51,144.49,84.63533871]
[1750770621406,4.38412931,144.53,144.47,2.3649]
[1750770621608,35.02,144.52,144.47,2.3649]
[1750770622022,6.9165,144.5,144.47,9.2823]
[1750770623222,35.02,144.52,144.47,2.3649]
[1750770624320,6.916,144.51,144.47,2.3649]
[1750770624814,6.916,144.51,144.48,6.9168]
[1750770625016,35.02,144.52,144.48,6.9168]
[1750770625518,35.02,144.52,144.46,4.38412931]
[1750770625822,6.9165,144.5,144.46,4.38412931]
[1750770626212,35.02,144.52,144.47,6.9174]
[1750770626415,5.28127455,144.51,144.46,4.38412931]
[1750770626623,35.02,144.52,144.46,4.38412931]
[1750770626924,6.9168,144.49,144.47,6.9176]
[1750770627223,35.02,144.52,144.46,4.38412931]
[1750770627722,6.917,144.49,144.46,11.30192931]
[1750770628225,6.917,144.49,144.47,6.9177]
[1750770628523,6.9165,144.5,144.47,6.9177]
[1750770629023,35.02,144.52,144.47,6.9177]
[1750770629216,6.9169,144.49,144.46,6.918]
[1750770629418,6.9169,144.49,144.44,4.821]
[1750770629617,6.9169,144.49,144.45,4.38412931]
[1750770629817,6.9169,144.49,144.46,6.9178]
[1750770630316,6.9169,144.49,144.44,4.821]
[1750770630317,12.49622748,144.51,144.44,11.7401]
[1750770630518,5.27489009,144.5,144.44,11.7401]
[1750770630822,4.38412931,144.51,144.44,11.7401]
[1750770630823,6.9179,144.47,144.44,11.7401]
[1750770631324,35.02,144.48,144.44,4.821]
[1750770631821,35.02,144.48,144.45,6.9185]
[1750770632022,41.9373,144.48,144.45,6.9185]
[1750770632523,35.02,144.48,144.45,6.9185]
[1750770632718,6.9179,144.47,144.44,2.4154]
[1750770632918,35.02,144.48,144.43,2.3527]
[1750770633324,35.02,144.48,144.42,6.9198]
[1750770633529,5.23808539,144.47,144.4,9.00902931]
[1750770633717,35.02,144.48,144.4,9.00902931]
[1750770633917,6.9187,144.45,144.41,6.9203]
[1750770634625,6.9191,144.44,144.41,6.9203]
[1750770636428,6.9191,144.44,144.4,9.00902931]
[1750770636630,6.9196,144.43,144.4,9.00902931]
[1750770636821,6.9196,144.43,144.4,9.2634]
[1750770638522,6.9197,144.43,144.4,9.2634]
[1750770638727,4.38412931,144.47,144.4,2.3426]
[1750770639221,6.9195,144.44,144.41,6.9205]
[1750770639421,4.38412931,144.47,144.4,2.3426]
[1750770639826,6.9198,144.43,144.4,9.2634]
[1750770643528,6.9202,144.42,144.4,6.9208]
[1750770644531,35.04,144.44,144.37,4.4712]
[1750770644733,39.42412931,144.44,144.37,4.4712]
[1750770645136,4.38412931,144.42,144.36,2.422]
[1750770645630,6.9216,144.39,144.36,9.3446]
[1750770647037,6.9216,144.39,144.37,6.9225]
[1750770647235,6.9216,144.39,144.36,2.422]
[1750770647437,6.922,144.38,144.35,39.42412931]
[1750770647730,35.04,144.44,144.33,2.2809]
[1750770647731,39.42412931,144.4,144.33,2.2809]
[1750770647933,4.38412931,144.38,144.31,4.38412931]
[1750770648143,35.04,144.37,144.32,6.9245]
[1750770648327,35.04,144.37,144.31,4.38412931]
[1750770648737,35.04,144.37,144.31,11.30942931]
[1750770648931,35.04,144.37,144.29,68.9255]
[1750770648932,4.38412931,144.36,144.29,11.30962931]
[1750770649135,4.38412931,144.36,144.29,2.383]
[1750770649334,4.38412931,144.36,144.28,6.9265]
[1750770649536,6.9254,144.31,144.28,6.9265]
[1750770649736,35.02,144.33,144.25,176.22012317]
[1750770649935,6.9263,144.3,144.25,176.22012317]
[1750770650134,35.02,144.32,144.25,176.22012317]
[1750770650135,39.40412931,144.32,144.25,171.83599386]
[1750770650333,4.38412931,144.3,144.24,2.1946]
[1750770650541,4.38412931,144.3,144.22,39.40412931]
[1750770651539,4.38412931,144.3,144.23,6.929]
[1750770651741,6.9268,144.28,144.22,39.40412931]
[1750770651938,35.02,144.28,144.22,39.40412931]
[1750770652135,41.9471,144.28,144.22,39.40412931]
[1750770652539,35.02,144.28,144.24,6.9284]
[1750770652741,41.947,144.28,144.24,6.9284]
[1750770653043,41.947,144.28,144.22,39.40412931]
[1750770653239,39.40412931,144.28,144.21,134.54]
[1750770653539,39.40412931,144.28,144.2,6.59872931]
[1750770653743,39.40412931,144.28,144.2,2.2146]
[1750770654146,35.02,144.28,144.2,2.2146]
[1750770654332,35.02,144.28,144.21,4.38412931]
[1750770654744,35.02,144.28,144.22,6.9295]
[1750770654745,39.40412931,144.28,144.22,6.9295]
[1750770655248,39.40412931,144.28,144.2,6.59872931]
[1750770655444,5.15466941,144.32,144.22,4.38412931]
[1750770655640,5.15466941,144.32,144.2,2.2146]
[1750770655641,35.04,144.31,144.24,4.38412931]
[1750770655943,6.9266,144.29,144.25,6.9282]
[1750770656144,6.9266,144.29,144.24,4.38412931]
[1750770656538,6.9266,144.29,144.25,6.9281]
[1750770657746,6.926,144.3,144.26,6.9275]
[1750770658150,35.04,144.31,144.26,6.9275]
[1750770658947,6.9263,144.29,144.25,6.928]
[1750770659749,6.9263,144.29,144.26,6.9276]
[1750770659947,6.9263,144.29,144.23,2.2969]
[1750770660148,6.9263,144.29,144.25,6.928]
[1750770660643,35.04,144.31,144.24,4.38412931]
[1750770660844,35.04,144.31,144.2,68.59872931]
[1750770660845,4.38412931,144.28,144.2,68.59872931]
[1750770661045,35.04,144.27,144.2,68.59872931]
[1750770661246,35.04,144.27,144.22,6.9292]
[1750770661437,35.04,144.27,144.2,68.59872931]
[1750770661842,35.04,144.27,144.22,6.9296]
[1750770661843,6.9277,144.26,144.22,6.9296]
[1750770662337,6.9277,144.26,144.2,6.59872931]
[1750770663146,6.9916,144.33,144.22,4.38412931]
[1750770663451,4.38412931,144.31,144.22,4.38412931]
[1750770663646,35.04,144.32,144.24,4.38412931]
[1750770663853,35.04,144.32,144.26,4.38412931]
[1750770664051,35.04,144.32,144.27,4.38412931]
[1750770665045,35.04,144.35,144.29,4.38412931]
[1750770665246,35.04,144.35,144.31,4.38412931]
[1750770665655,41.9637,144.35,144.32,6.9245]
[1750770665846,35.04,144.35,144.28,2.3459]
[1750770666047,35.04,144.35,144.3,4.38412931]
[1750770666254,6.9239,144.34,144.31,6.9251]
[1750770667253,35.04,144.35,144.3,4.38412931]
[1750770667954,41.9636,144.35,144.32,6.9245]
[1750770668450,35.04,144.35,144.32,4.38412931]
[1750770668846,35.04,144.35,144.33,6.9241]
[1750770672257,597.84,144.38,144.34,4.38412931]
[1750770672258,35.04,144.38,144.34,4.38412931]
[1750770673460,41.9624,144.38,144.35,6.9232]
[1750770674156,35.04,144.38,144.33,2.2751]
[1750770674752,6.923,144.36,144.33,2.2751]
[1750770674964,35.04,144.38,144.33,2.2751]
[1750770675163,6.9226,144.37,144.34,6.9235]
[1750770675864,6.9226,144.37,144.33,2.2751]
[1750770675865,6.923,144.36,144.33,9.1993]
[1750770676063,35.04,144.38,144.33,2.2751]
[1750770676464,35.04,144.38,144.34,6.9237]
[1750770676854,6.9232,144.36,144.33,6.9241]
[1750770677163,35.04,144.38,144.31,35.04]
[1750770677363,35.04,144.38,144.31,4.38412931]
[1750770677557,35.04,144.38,144.32,6.9246]
[1750770678067,6.924,144.34,144.31,11.30922931]
[1750770678362,35.04,144.38,144.31,11.30922931]
[1750770678563,4.38412931,144.37,144.29,6.58832931]
[1750770679261,6.9241,144.34,144.31,6.9251]
[1750770679669,4.38412931,144.37,144.29,6.58832931]
[1750770679857,6.9236,144.35,144.32,6.9245]
[1750770680062,4.38412931,144.37,144.32,6.9245]
[1750770680666,4.38412931,144.37,144.31,6.925]
[1750770681059,6.924,144.34,144.31,6.925]
[1750770684459,6.924,144.34,144.32,6.9248]
[1750770685271,6.924,144.34,144.31,6.9251]
[1750770685469,6.9244,144.33,144.31,6.9251]
[1750770685971,6.9244,144.33,144.3,4.38412931]
[1750770685972,6.9249,144.32,144.3,11.30982931]
[1750770686163,4.38412931,144.37,144.3,11.30982931]
[1750770686563,6.9249,144.32,144.3,11.30982931]
[1750770687464,6.9249,144.32,144.3,6.9257]
[1750770687972,6.9246,144.33,144.3,6.9257]
[1750770689173,6.925,144.32,144.3,6.9257]
[1750770689669,35.12,144.34,144.29,13.51442931]
[1750770690170,35.12,144.34,144.29,11.31022931]
[1750770691468,35.12,144.34,144.27,6.68112931]
[1750770691864,6.926,144.3,144.27,6.68112931]
[1750770692664,6.926,144.3,144.28,6.9267]
[1750770692870,6.926,144.3,144.27,6.68112931]
[1750770693172,6.9265,144.29,144.25,6.63352931]
[1750770693670,6.9265,144.29,144.26,6.9275]
[1750770694269,6.9261,144.3,144.27,6.9272]
[1750770694866,6.9252,144.32,144.27,4.38412931]
[1750770695067,35.12,144.33,144.27,4.38412931]
[1750770696074,35.12,144.33,144.28,6.9264]
[1750770697264,6.9257,144.31,144.28,6.9264]
[1750770698276,6.9257,144.31,144.29,6.9262]
[1750770700775,6.9257,144.31,144.28,6.9266]
[1750770701772,6.9257,144.31,144.29,6.9263]
[1750770702178,6.9257,144.31,144.27,4.38412931]
[1750770702878,6.9257,144.31,144.28,6.9265]
[1750770703580,6.9259,144.3,144.28,6.9265]
[1750770704876,6.9259,144.3,144.27,11.31112931]
[1750770705475,6.9263,144.29,144.27,6.927]
[1750770706479,4.38412931,144.32,144.25,6.63352931]
[1750770707169,4.38412931,144.32,144.25,4.38412931]
[1750770707366,6.87312252,144.32,144.25,4.38412931]
[1750770707582,6.87312252,144.32,144.25,11.31212931]
[1750770708181,6.9273,144.27,144.25,11.31212931]
[1750770709579,6.927,144.28,144.25,11.31212931]
[1750770710575,6.927,144.28,144.26,6.9277]
[1750770710884,35.12,144.29,144.24,4.38412931]
[1750770711086,35.12,144.29,144.25,6.928]
[1750770711287,6.9271,144.28,144.25,6.928]
[1750770711980,42.0466,144.29,144.26,6.9277]
[1750770712377,35.12,144.29,144.28,6.9268]
[1750770712585,35.12,144.29,144.24,4.38412931]
[1750770712778,35.04,144.31,144.24,4.38412931]
[1750770712981,41.9655,144.31,144.26,4.38412931]
[1750770713583,41.9655,144.31,144.29,6.9259]
[1750770714689,35.04,144.34,144.28,4.38412931]
[1750770715186,6.9251,144.32,144.28,4.38412931]
[1750770715385,6.9251,144.32,144.3,6.9256]
[1750770722389,6.9246,144.33,144.31,6.9253]
[1750770724192,6.9249,144.32,144.3,6.9255]
[1750770724985,35.04,144.34,144.29,4.38412931]
[1750770725586,41.9639,144.34,144.32,6.9246]
[1750770726887,35.04,144.34,144.33,6.9244]
[1750770727083,35.04,144.37,144.31,4.38412931]
[1750770727893,6.9233,144.36,144.33,6.9241]
[1750770728082,35.04,144.37,144.33,6.9241]
[1750770728993,6.9237,144.35,144.33,6.9241]
[1750770729194,6.9237,144.35,144.3,8.45549779]
[1750770729195,35.04,144.37,144.3,4.38412931]
[1750770729690,6.9245,144.33,144.3,4.38412931]
[1750770730192,6.9245,144.33,144.31,6.9251]
[1750770731192,35.04,144.37,144.3,4.38412931]
[1750770731588,6.9232,144.36,144.33,6.924]
[1750770731792,6.9232,144.36,144.32,4.38412931]
[1750770732093,35.04,144.37,144.32,4.38412931]
[1750770732293,6.9232,144.36,144.33,6.9241]
[1750770732492,35.04,144.37,144.3,8.45549779]
[1750770732696,35.04,144.37,144.3,4.38412931]
[1750770733098,6.9242,144.34,144.3,4.38412931]
[1750770733394,5.11898315,144.36,144.29,4.38412931]
[1750770733596,6.9251,144.32,144.3,6.9256]
[1750770734397,6.9256,144.31,144.29,6.9261]
[1750770734802,6.9258,144.31,144.28,6.9265]
[1750770735000,35.04,144.33,144.28,6.9265]
[1750770735298,6.9256,144.31,144.28,6.9265]
[1750770735597,35.04,144.33,144.28,6.9265]
[1750770736101,39.42412931,144.33,144.27,6.927]
[1750770736596,6.9261,144.3,144.27,6.927]
[1750770736996,6.9261,144.3,144.25,12.8396271]
[1750770737709,6.9261,144.3,144.27,6.927]
[1750770738302,6.9256,144.31,144.25,12.8396271]
[1750770738692,39.42412931,144.33,144.25,12.8396271]
[1750770738902,6.9257,144.31,144.28,6.9265]
[1750770739392,6.9257,144.31,144.29,6.9262]
[1750770740691,6.926,144.3,144.25,12.8396271]
[1750770741301,6.9256,144.31,144.28,6.9267]
[1750770742201,6.9256,144.31,144.29,6.9263]
[1750770742904,35.04,144.33,144.29,6.9263]
[1750770743299,35.04,144.33,144.28,6.9266]
[1750770743593,6.9254,144.31,144.28,6.9266]
[1750770744097,6.9259,144.3,144.28,6.9266]
[1750770745202,6.9256,144.31,144.28,6.9266]
[1750770746705,6.9259,144.3,144.28,6.9266]
[1750770748209,6.9263,144.29,144.27,11.31122931]
[1750770748407,35.04,144.33,144.27,4.38412931]
[1750770748609,6.926,144.3,144.28,6.9265]
[1750770750312,6.9256,144.31,144.29,6.9263]
[1750770751112,6.9256,144.31,144.28,6.9265]
[1750770751806,6.9256,144.31,144.29,6.9261]
[1750770752007,6.9251,144.32,144.27,4.38412931]
[1750770752412,35.04,144.33,144.29,6.926]
[1750770752808,6.9255,144.31,144.29,6.926]
[1750770754518,6.9251,144.32,144.3,6.9257]
[1750770754819,35.04,144.33,144.27,4.38412931]
[1750770755417,6.9257,144.31,144.29,6.926]
[1750770755916,6.9251,144.32,144.3,6.9258]
[1750770757619,6.9253,144.31,144.29,6.926]
[1750770758723,6.9253,144.31,144.28,6.9265]
[1750770759020,35.04,144.33,144.27,4.38412931]
[1750770759220,35.04,144.33,144.27,11.31112931]
[1750770759420,6.9265,144.29,144.27,11.31112931]
[1750770759624,6.9265,144.29,144.27,6.927]
[1750770760122,6.9261,144.3,144.27,6.927]
[1750770760316,6.9261,144.3,144.28,6.9267]
[1750770760723,6.9263,144.29,144.25,12.8396271]
[1750770760916,6.9263,144.29,144.26,6.9276]
[1750770761923,6.9263,144.29,144.27,6.9271]
[1750770762920,6.9261,144.3,144.28,6.9267]
[1750770763922,6.9261,144.3,144.27,11.31112931]
[1750770764826,35.04,144.33,144.25,15.38329779]
[1750770765030,35.04,144.33,144.25,6.9278]
[1750770765031,4.39954655,144.31,144.25,6.9278]
[1750770765215,4.39954655,144.31,144.23,19.88204434]
[1750770765410,7.59616097,144.3,144.23,19.88204434]
[1750770765626,37.2888,144.33,144.23,19.88204434]
[1750770765627,35.02,144.29,144.23,15.48249779]
[1750770765928,35.02,144.29,144.23,11.42654655]
[1750770766818,6.9274,144.27,144.24,6.9284]
[1750770767230,6.9274,144.27,144.25,6.9282]
[1750770768624,6.927,144.28,144.25,6.9282]
[1750770769228,6.9268,144.28,144.23,11.4265585]
[1750770769718,6.9268,144.28,144.25,6.928]
[1750770771727,41.9465,144.29,144.23,11.4265585]
[1750770772028,35.02,144.29,144.25,4.3995585]
[1750770772413,35.18,144.33,144.24,12.85505629]
[1750770772625,35.18,144.33,144.28,4.3995585]
[1750770772823,35.18,144.33,144.27,4.3995585]
[1750770773015,6.9257,144.31,144.28,6.9265]
[1750770773927,6.9257,144.31,144.29,6.9262]
[1750770774825,6.9251,144.32,144.29,6.9262]
[1750770775628,42.1045,144.33,144.27,4.3995585]
[1750770775831,42.1045,144.33,144.29,4.3995585]
[1750770775832,35.18,144.33,144.29,4.3995585]
[1750770777026,35.18,144.33,144.31,6.925]
[1750770777227,35.18,144.33,144.29,4.3995585]
[1750770777732,35.18,144.33,144.32,6.9249]
[1750770780336,35.18,144.33,144.29,4.3995585]
[1750770780337,35.18,144.33,144.28,15.29629779]
[1750770780525,35.18,144.33,144.28,6.6502585]
[1750770780835,35.18,144.33,144.29,6.926]
[1750770781434,35.18,144.33,144.28,6.9265]
[1750770781636,5.11282028,144.32,144.28,6.9265]
[1750770781935,6.926,144.3,144.27,6.927]
[1750770783227,6.926,144.3,144.28,6.9267]
[1750770783423,39.5795585,144.33,144.25,35.18]
[1750770783424,6.9267,144.29,144.25,43.63549779]
[1750770783625,6.9267,144.29,144.25,39.5795585]
[1750770784438,6.9267,144.29,144.26,6.9276]
[1750770784732,6.9267,144.29,144.25,4.3995585]
[1750770785135,6.9267,144.29,144.26,6.9276]
[1750770785730,6.927,144.28,144.25,6.928]
[1750770786130,35.18,144.29,144.24,4.3995585]
[1750770786337,6.927,144.28,144.25,6.9282]
[1750770791141,42.1064,144.29,144.26,6.9276]
[1750770792038,35.18,144.29,144.27,6.9272]
[1750770792230,35.18,144.29,144.24,12.85505629]
[1750770792744,42.1063,144.29,144.26,6.9275]
[1750770793243,42.1063,144.29,144.24,12.85505629]
[1750770793446,35.18,144.29,144.27,6.9272]
[1750770794046,35.18,144.29,144.28,6.9268]
[1750770794240,37.67476912,144.32,144.26,4.3995585]
[1750770794442,35.18,144.32,144.26,4.3995585]
[1750770795240,6.926,144.3,144.27,6.927]